[Event "94th FRA-ch Open D 2019"]
[Site "Chartres"]
[Date "2019.08.25"]
[Round "9.5"]
[White "Decurninge, Brice"]
[Black "De Carvalho Massabo, Raphael"]
[Result "1/2-1/2"]
[ECO "C54"]
[WhiteElo "1462"]
[BlackElo "1579"]
[Annotator "NA"]
[PlyCount "61"]
[EventDate "2019.08.17"]
[EventType "swiss"]
[EventCountry "FRA"]
[SourceTitle "playchess.com"]
[Source "ChessBase"]
[SourceQuality "1"]
[TimeControl "40/5400+30:1800+30"]

1. e4 {[%emt 0:00:00]} e5 {[%emt 0:00:01]} 2. Nf3 {[%emt 0:00:00]} Nc6 {[%emt 0:00:39]} 3. Bc4 {[%emt 0:00:01]} Nf6 {[%emt 0:00:19]} 4. d3 {[%emt 0:00:11]} Bc5 {[%emt 0:00:56]} 5. c3 {[%emt 0:00:46]} O-O {[%emt 0:00:35]} 6. O-O {[%emt 0:01:52]} d6 {[%emt 0:01:15]} 7. b4 {[%emt 0:01:54]} Bb6 {[%emt 0:00:08]} 8. Bg5 {[%emt 0:05:02]} Qe7 {[%emt 0:03:01]} 9. Bb3 {[%emt 1:24:44]} a5 {[%emt 0:01:42]} 10. b5 {[%emt 0:00:00]} Nd8 {[%emt 0:00:29]} 11. Nbd2 {[%emt 0:00:00]} Ne6 {[%emt 0:00:43]} 12. Bxf6 {[%emt 0:00:00]} Qxf6 {[%emt 0:00:10]} 13. Nc4 {[%emt 0:00:00]} Bc5 {[%emt 0:02:05]} 14. Ne3 {[%emt 0:00:00]} c6 {[%emt 0:01:13]} 15. bxc6 {[%emt 0:00:00]} bxc6 {[%emt 0:00:07]} 16. Ba4 {[%emt 0:00:00]} Bd7 {[%emt 0:03:25]} 17. Rb1 {[%emt 0:00:00]} Rfb8 {[%emt 0:04:16]} 18. Rxb8+ {[%emt 0:00:00]} Rxb8 {[%emt 0:01:21]} 19. Nc4 {[%emt 0:00:00]} Nf4 {[%emt 0:02:02]} 20. d4 {[%emt 0:00:00]} Bh3 {[%emt 0:10:31]} 21. dxc5 {[%emt 0:00:00]} Bxg2 {[%emt 0:03:22]} 22. Qxd6 {[%emt 0:00:00]} Qxd6 {[%emt 0:00:32]} 23. cxd6 {[%emt 0:00:00]} Bxf3 {[%emt 0:00:56]} 24. Re1 {[%emt 0:00:00]} Bxe4 {[%emt 0:01:02]} 25. Nxe5 {[%emt 0:00:00]} Rb2 {[%emt 0:01:53]} 26. f3 {[%emt 0:00:00]} Nh3+ {[%emt 0:03:16]} 27. Kh1 {[%emt 0:00:00]} Nf2+ {[%emt 0:00:28]} 28. Kg1 {[%emt 0:00:00]} Nh3+ {[%emt 0:00:20]} 29. Kh1 {[%emt 0:00:00]} Nf2+ {[%emt 0:00:08]} 30. Kg1 {[%emt 0:00:00]} Nh3+ {[%emt 0:58:05]} 31. Kh1 1/2-1/2

[Event "94th FRA-ch Open D 2019"]
[Site "Chartres"]
[Date "2019.08.25"]
[Round "9.6"]
[White "Druon, Thibault"]
[Black "Lombardo, Patrick"]
[Result "1-0"]
[ECO "D19"]
[WhiteElo "1388"]
[BlackElo "1566"]
[Annotator "NA"]
[PlyCount "75"]
[EventDate "2019.08.17"]
[EventType "swiss"]
[EventCountry "FRA"]
[SourceTitle "playchess.com"]
[Source "ChessBase"]
[SourceQuality "1"]
[TimeControl "40/5400+30:1800+30"]

1. d4 {[%emt 0:00:00]} d5 {[%emt 0:00:00]} 2. c4 {[%emt 0:00:00]} c6 {[%emt 0:00:00]} 3. Nf3 {[%emt 0:00:06]} Nf6 {[%emt 0:00:00]} 4. Nc3 {[%emt 0:00:18]} dxc4 {[%emt 0:00:03]} 5. a4 {[%emt 0:00:22]} Bf5 {[%emt 0:00:09]} 6. e3 {[%emt 0:00:18]} e6 {[%emt 0:00:04]} 7. Bxc4 {[%emt 0:00:14]} Bb4 {[%emt 0:00:48]} 8. O-O {[%emt 1:32:42]} Nbd7 {[%emt 1:32:56]} 9. Qe2 {[%emt 0:00:00]} O-O {[%emt 0:00:00]} 10. e4 {[%emt 0:00:00]} Bg4 {[%emt 0:00:00]} 11. Bd3 {[%emt 0:00:00]} e5 {[%emt 0:00:00]} 12. d5 {[%emt 0:00:00]} Nc5 {[%emt 0:00:00]} 13. Na2 {[%emt 0:00:00]} Nxd3 {[%emt 0:00:00]} 14. Qxd3 {[%emt 0:00:00]} a5 {[%emt 0:00:00]} 15. Nxe5 {[%emt 0:00:00]} cxd5 {[%emt 0:00:00]} 16. Nxg4 {[%emt 0:00:00]} Nxg4 {[%emt 0:00:00]} 17. exd5 {[%emt 0:00:00]} Qd6 {[%emt 0:00:00]} 18. Qg3 {[%emt 0:00:00]} Qxg3 {[%emt 0:00:00]} 19. hxg3 {[%emt 0:00:00]} Bc5 {[%emt 0:00:00]} 20. Bf4 {[%emt 0:00:00]} Bd4 {[%emt 0:00:00]} 21. Rad1 {[%emt 0:00:00]} Bxb2 {[%emt 0:00:00]} 22. Rb1 {[%emt 0:00:00]} Bd4 {[%emt 0:00:00]} 23. Rxb7 {[%emt 0:00:00]} Rfe8 {[%emt 0:00:00]} 24. Nc1 {[%emt 0:00:00]} Nxf2 {[%emt 0:00:00]} 25. Nb3 {[%emt 0:00:00]} Nh3+ {[%emt 0:00:00]} 26. Kh2 {[%emt 0:00:00]} Nxf4 {[%emt 0:00:00]} 27. Rxf4 {[%emt 0:00:00]} Bf6 {[%emt 0:00:00]} 28. d6 {[%emt 0:00:00]} Re5 {[%emt 0:00:00]} 29. Nd2 {[%emt 0:00:00]} Rh5+ {[%emt 0:10:30]} 30. Kg1 {[%emt 0:11:00]} Rd5 {[%emt 0:00:00]} 31. Nc4 {[%emt 0:00:00]} Rd8 {[%emt 0:00:00]} 32. Re4 {[%emt 0:00:00]} Kf8 {[%emt 0:00:00]} 33. Ree7 {[%emt 0:00:00]} Bd4+ {[%emt 0:00:00]} 34. Kf1 {[%emt 0:00:00]} Rf5+ {[%emt 0:00:17]} 35. Ke2 {[%emt 0:00:00]} Re8 {[%emt 0:00:05]} 36. d7 {[%emt 0:00:00]} Rxe7+ {[%emt 0:00:24]} 37. Kd3 {[%emt 0:00:00]} Rd5 {[%emt 0:00:26]} 38. Rb8+ {[%emt 0:04:00] Rf5 Rb7 Ba7 Rxa7 Rxd7+ Rxd7} 1-0